[Event "XIX Najdorf Memorial 2019"]
[Site "Warsaw"]
[Date "2019.07.10"]
[Round "5.4"]
[White "Noe, Christopher"]
[Black "Jakubowski, Krzysztof"]
[Result "1-0"]
[ECO "D37"]
[WhiteElo "2534"]
[BlackElo "2528"]
[Annotator "ChessBase"]
[PlyCount "83"]
[EventDate "2019.07.06"]
[EventType "swiss"]
[EventCountry "POL"]
[SourceTitle "playchess.com"]
[Source "ChessBase"]
[SourceQuality "1"]
[TimeControl "40/5400+30:1800+30"]

1. d4 {[%emt 0:00:00]} Nf6 {[%emt 0:00:00]} 2. c4 {[%emt 0:00:00]} e6 {[%emt 0:00:00]} 3. Nf3 {[%emt 0:00:00]} d5 {[%emt 0:00:24]} 4. Nc3 {[%emt 0:00:00]} Nbd7 {[%emt 0:00:05]} 5. e3 {[%emt 0:00:00]} a6 {[%emt 0:00:19]} 6. c5 {[%emt 0:07:19]} c6 {[%emt 0:13:15]} 7. b4 {[%emt 0:01:39]} g6 {[%emt 0:01:43]} 8. Bb2 {[%emt 0:02:01]} Bg7 {[%emt 0:00:15]} 9. Be2 {[%emt 0:01:11]} O-O {[%emt 0:00:17]} 10. O-O {[%emt 0:06:11]} Qe7 {[%emt 0:07:03]} 11. a4 {[%emt 0:20:59]} Rd8 {[%emt 0:15:06]} 12. b5 {[%emt 0:08:08]} a5 {[%emt 0:01:17]} 13. Nd2 {[%emt 0:01:09]} e5 {[%emt 0:00:19]} 14. Nb3 {[%emt 0:06:44]} e4 {[%emt 0:00:14]} 15. Nb1 {[%emt 0:02:02]} h5 {[%emt 0:08:57]} 16. Bc3 {[%emt 0:00:51]} Nf8 {[%emt 0:00:06]} 17. Bxa5 {[%emt 0:00:58]} Re8 {[%emt 0:00:17]} 18. Bb6 {[%emt 0:02:20]} Bf5 {[%emt 0:05:07]} 19. a5 {[%emt 0:00:46]} cxb5 {[%emt 0:00:27]} 20. Nc3 {[%emt 0:00:25]} Ne6 {[%emt 0:00:29]} 21. Nxb5 {[%emt 0:00:18]} Ng4 {[%emt 0:00:19]} 22. Nd6 {[%emt 0:02:24]} Bh6 {[%emt 0:02:14]} 23. h3 {[%emt 0:09:41]} Qg5 {[%emt 0:13:37]} 24. hxg4 {[%emt 0:11:32]} hxg4 {[%emt 0:00:14]} 25. Bb5 {[%emt 0:00:27]} Re7 {[%emt 0:10:01]} 26. Re1 {[%emt 0:10:12]} g3 {[%emt 0:04:18]} 27. Qd2 {[%emt 0:02:24]} gxf2+ {[%emt 0:09:46]} 28. Qxf2 {[%emt 0:00:05]} Bh3 {[%emt 0:00:15]} 29. Kf1 {[%emt 0:00:45]} Bg4 {[%emt 0:00:22]} 30. Be2 {[%emt 0:02:47]} f5 {[%emt 0:00:16]} 31. Bxg4 {[%emt 0:01:08]} fxg4 {[%emt 0:00:06]} 32. Qg3 {[%emt 0:00:38]} Ng7 {[%emt 0:00:06]} 33. Ke2 {[%emt 0:00:36]} Nh5 {[%emt 0:00:20]} 34. Qf2 {[%emt 0:00:01]} g3 {[%emt 0:01:03]} 35. Qg1 {[%emt 0:00:01]} Rf8 {[%emt 0:00:05]} 36. Kd2 {[%emt 0:00:22]} Rf2+ {[%emt 0:00:39]} 37. Kc3 {[%emt 0:00:01]} Nf4 {[%emt 0:00:30]} 38. exf4 {[%emt 0:00:38]} Qxf4 {[%emt 0:00:19]} 39. a6 {[%emt 0:01:26]} bxa6 {[%emt 0:00:45]} 40. Qh1 {[%emt 0:00:00]} e3 {[%emt 0:00:00]} 41. Bd8 {[%emt 0:06:22]} Re6 {[%emt 0:20:51]} 42. Qh3 {[%emt 0:03:35]} 1-0

[Event "XIX Najdorf Memorial 2019"]
[Site "Warsaw"]
[Date "2019.07.10"]
[Round "5.5"]
[White "Tomczak, Jacek"]
[Black "Menezes, Christoph"]
[Result "1-0"]
[ECO "B94"]
[WhiteElo "2623"]
[BlackElo "2413"]
[Annotator "RC"]
[PlyCount "67"]
[EventDate "2019.07.06"]
[EventType "swiss"]
[EventCountry "POL"]
[SourceTitle "playchess.com"]
[Source "ChessBase"]
[SourceQuality "1"]
[TimeControl "40/5400+30:1800+30"]

1. e4 {[%emt 0:00:00]} c5 {[%emt 0:00:00]} 2. Nf3 {[%emt 0:00:00]} d6 {[%emt 0:00:00]} 3. d4 {[%emt 0:00:00]} cxd4 {[%emt 0:00:00]} 4. Nxd4 {[%emt 0:00:01]} Nf6 {[%emt 0:00:04]} 5. Nc3 {[%emt 0:00:08]} a6 {[%emt 0:00:06]} 6. Bg5 {[%emt 0:00:16]} Nbd7 {[%emt 0:00:30]} 7. a4 {[%emt 0:00:21]} Qc7 {[%emt 0:06:11]} 8. a5 {[%emt 0:01:24]} e6 {[%emt 0:02:05]} 9. Be2 {[%emt 0:00:56]} Be7 {[%emt 0:00:47]} 10. Nb3 {[%emt 0:00:17]} O-O {[%emt 0:05:54]} 11. O-O {[%emt 0:00:31]} b5 {[%emt 0:06:52]} 12. axb6 {[%emt 0:01:02]} Nxb6 {[%emt 0:00:24]} 13. Qd4 {[%emt 0:05:38]} e5 {[%emt 0:10:43]} 14. Qe3 {[%emt 0:11:41]} h6 {[%emt 0:03:25]} 15. Bxf6 {[%emt 0:04:02]} Bxf6 {[%emt 0:00:05]} 16. Bd3 {[%emt 0:03:37]} Rd8 {[%emt 0:15:55]} 17. Rfb1 {[%emt 0:37:23]} Bb7 {[%emt 0:13:01]} 18. Na5 {[%emt 0:02:00]} Bc8 {[%emt 0:02:06]} 19. Nb3 {[%emt 0:00:17]} Bb7 {[%emt 0:00:18]} 20. Na5 {[%emt 0:07:58]} Bc8 {[%emt 0:00:20]} 21. Nd5 {[%emt 0:00:43]} Nxd5 {[%emt 0:00:11]} 22. exd5 {[%emt 0:00:03]} Bd7 {[%emt 0:01:55]} 23. Qf3 {[%emt 0:00:18]} Be7 {[%emt 0:04:40]} 24. Bf5 {[%emt 0:02:32]} Be8 {[%emt 0:01:26]} 25. Nc6 {[%emt 0:00:33]} Bxc6 {[%emt 0:07:52]} 26. dxc6 {[%emt 0:00:10]} d5 {[%emt 0:00:11]} 27. Bd7 {[%emt 0:00:17]} d4 {[%emt 0:01:02]} 28. c3 {[%emt 0:02:24]} a5 {[%emt 0:01:30]} 29. cxd4 {[%emt 0:07:20]} exd4 {[%emt 0:00:10]} 30. Qd5 {[%emt 0:00:22]} Bf6 {[%emt 0:03:59]} 31. g3 {[%emt 0:02:49]} Rdb8 {[%emt 0:02:41]} 32. Ra4 {[%emt 0:02:25]} Ra7 {[%emt 0:03:29]} 33. Re1 {[%emt 0:02:53]} g6 {[%emt 0:02:04]} 34. Ra3 {[%emt 0:01:00]} 1-0

[Event "XIX Najdorf Memorial 2019"]
[Site "Warsaw"]
[Date "2019.07.10"]
[Round "5.6"]
[White "Czopor, Maciej"]
[Black "Roseneck, Jonas"]
[Result "0-1"]
[ECO "B90"]
[WhiteElo "2250"]
[BlackElo "2398"]
[Annotator "NA"]
[PlyCount "108"]
[EventDate "2019.07.06"]
[EventType "swiss"]
[EventCountry "POL"]
[SourceTitle "playchess.com"]
[Source "ChessBase"]
[SourceQuality "1"]
[TimeControl "40/5400+30:1800+30"]

1. e4 {[%emt 0:00:00]} c5 {[%emt 0:00:00]} 2. Nf3 {[%emt 0:00:00]} d6 {[%emt 0:00:00]} 3. d4 {[%emt 0:00:00]} cxd4 {[%emt 0:00:00]} 4. Nxd4 {[%emt 0:00:00]} Nf6 {[%emt 0:00:00]} 5. Nc3 {[%emt 0:00:00]} a6 {[%emt 0:00:00]} 6. Be3 {[%emt 0:00:15]} e5 {[%emt 0:00:00]} 7. Nb3 {[%emt 0:00:14]} Be6 {[%emt 0:00:02]} 8. Qd2 {[%emt 0:01:36]} Nbd7 {[%emt 0:00:16]} 9. f3 {[%emt 0:00:30]} h5 {[%emt 0:00:04]} 10. Nd5 {[%emt 0:04:09]} Bxd5 {[%emt 0:00:26]} 11. exd5 {[%emt 0:00:09]} g6 {[%emt 0:00:02]} 12. Be2 {[%emt 0:01:04]} Bg7 {[%emt 0:00:14]} 13. O-O {[%emt 0:00:44]} b6 {[%emt 0:00:07]} 14. a4 {[%emt 0:03:36]} Qc7 {[%emt 0:14:11]} 15. a5 {[%emt 0:24:15]} b5 {[%emt 0:01:26]} 16. Rfd1 {[%emt 0:12:06]} O-O {[%emt 0:05:48]} 17. Rac1 {[%emt 0:01:07]} Qb7 {[%emt 0:06:14]} 18. Na1 {[%emt 0:14:12]} Rac8 {[%emt 0:09:46]} 19. h3 {[%emt 0:03:58]} Rfe8 {[%emt 0:11:15]} 20. c4 {[%emt 0:10:47]} bxc4 {[%emt 0:05:43]} 21. Bxc4 {[%emt 0:03:51]} e4 {[%emt 0:00:17]} 22. f4 {[%emt 0:00:59]} Nc5 {[%emt 0:00:07]} 23. Nc2 {[%emt 0:14:40]} Nd3 {[%emt 0:10:44]} 24. Bxd3 {[%emt 0:00:13]} exd3 {[%emt 0:00:02]} 25. Qxd3 {[%emt 0:00:18]} Qxb2 {[%emt 0:08:33]} 26. Bd4 {[%emt 0:00:12]} Qb7 {[%emt 0:04:31]} 27. Bxf6 {[%emt 0:04:03]} Bxf6 {[%emt 0:00:25]} 28. Rb1 {[%emt 0:00:29]} Qc7 {[%emt 0:01:07]} 29. Nb4 {[%emt 0:00:25]} Qxa5 {[%emt 0:02:18]} 30. Nc6 {[%emt 0:00:36]} Qc5+ {[%emt 0:02:21]} 31. Kh1 {[%emt 0:00:05]} Ra8 {[%emt 0:03:08]} 32. f5 {[%emt 0:00:14]} Re3 {[%emt 0:02:52]} 33. Qf1 {[%emt 0:01:07]} g5 {[%emt 0:00:05]} 34. Qg1 {[%emt 0:00:34]} Rae8 {[%emt 0:01:45]} 35. Rbc1 {[%emt 0:00:28]} Qa3 {[%emt 0:00:09]} 36. Re1 {[%emt 0:00:28]} Kg7 {[%emt 0:00:33]} 37. Rxe3 {[%emt 0:00:18]} Rxe3 {[%emt 0:00:02]} 38. Qd1 {[%emt 0:00:46]} Rd3 {[%emt 0:01:16]} 39. Qf1 {[%emt 0:00:30]} Rxd5 {[%emt 0:00:11]} 40. Rb1 {[%emt 0:00:00]} a5 {[%emt 0:00:00]} 41. Qe2 {[%emt 0:06:37]} Qc3 {[%emt 0:07:29]} 42. Qe8 {[%emt 0:01:06]} Rxf5 {[%emt 0:03:16]} 43. Rb8 {[%emt 0:00:55]} Rf1+ {[%emt 0:00:05]} 44. Kh2 {[%emt 0:00:04]} Be5+ {[%emt 0:00:06]} 45. Nxe5 {[%emt 0:00:08]} Qxe5+ {[%emt 0:00:05]} 46. Qxe5+ {[%emt 0:00:07]} dxe5 {[%emt 0:00:04]} 47. Rb5 {[%emt 0:00:05]} Kf6 {[%emt 0:02:16]} 48. Rxa5 {[%emt 0:00:06]} Kf5 {[%emt 0:00:06]} 49. Rb5 {[%emt 0:00:11]} h4 {[%emt 0:00:42]} 50. Rc5 {[%emt 0:00:30]} Kf4 {[%emt 0:00:07]} 51. Rc4+ {[%emt 0:00:20]} e4 {[%emt 0:00:01]} 52. Ra4 {[%emt 0:00:06]} f5 {[%emt 0:00:19]} 53. Ra8 {[%emt 0:00:38]} Rd1 {[%emt 0:00:37]} 54. Rb8 {[%emt 0:00:15]} Rd4 {[%emt 0:00:33]} 0-1

[Event "XIX Najdorf Memorial 2019"]
[Site "Warsaw"]
[Date "2019.07.10"]
[Round "5.7"]
[White "Romanishin, Oleg M"]
[Black "Sedlak, Nikola"]
[Result "1/2-1/2"]
[ECO "A40"]
[WhiteElo "2443"]
[BlackElo "2586"]
[Annotator "ChessBase"]
[PlyCount "40"]
[EventDate "2019.07.06"]
[EventType "swiss"]
[EventCountry "POL"]
[SourceTitle "playchess.com"]
[Source "ChessBase"]
[SourceQuality "1"]
[TimeControl "40/5400+30:1800+30"]

1. d4 {[%emt 0:00:14]} e6 {[%emt 0:02:56]} 2. Nf3 {[%emt 0:00:20]} f5 {[%emt 0:03:38]} 3. g3 {[%emt 0:00:19]} Nf6 {[%emt 0:00:13]} 4. Bg2 {[%emt 0:00:06]} d5 {[%emt 0:00:17]} 5. Bf4 {[%emt 0:00:07]} Be7 {[%emt 0:01:11]} 6. O-O {[%emt 0:00:15]} Ne4 {[%emt 0:01:18]} 7. c4 {[%emt 0:02:32]} c6 {[%emt 0:00:24]} 8. Nbd2 {[%emt 0:01:41]} Nd7 {[%emt 0:03:51]} 9. Ne5 {[%emt 0:09:03]} O-O {[%emt 0:01:50]} 10. Rc1 {[%emt 0:02:25]} Nxe5 {[%emt 0:01:32]} 11. Bxe5 {[%emt 0:01:32]} Nd6 {[%emt 0:00:08]} 12. Bxd6 {[%emt 0:07:41]} Bxd6 {[%emt 0:00:38]} 13. e3 {[%emt 0:00:07]} Bd7 {[%emt 0:07:38]} 14. Qb3 {[%emt 0:08:01]} Qb6 {[%emt 0:01:50]} 15. Qc2 {[%emt 0:00:48]} Qd8 {[%emt 0:01:20]} 16. Qb3 {[%emt 0:00:21]} Qb8 {[%emt 0:02:00]} 17. Nf3 {[%emt 0:03:11]} b5 {[%emt 0:07:58]} 18. c5 {[%emt 0:11:39]} Bc7 {[%emt 0:00:10]} 19. Ne1 {[%emt 0:01:06]} g5 {[%emt 0:00:57]} 20. f4 {[%emt 0:08:38]} h6 {[%emt 0:03:03]} 1/2-1/2

[Event "XIX Najdorf Memorial 2019"]
[Site "Warsaw"]
[Date "2019.07.10"]
[Round "5.9"]
[White "Gukesh D"]
[Black "Tomaszewski, Kacper"]
[Result "0-1"]
[ECO "A10"]
[WhiteElo "2520"]
[BlackElo "2346"]
[Annotator "ChessBase"]
[PlyCount "48"]
[EventDate "2019.07.06"]
[EventType "swiss"]
[EventCountry "POL"]
[SourceTitle "playchess.com"]
[Source "ChessBase"]
[SourceQuality "1"]
[TimeControl "40/5400+30:1800+30"]

1. c4 {[%emt 0:00:00]} g6 {[%emt 0:00:00]} 2. Nc3 {[%emt 0:01:04]} c5 {[%emt 0:00:39]} 3. e3 {[%emt 0:02:44]} Bg7 {[%emt 0:00:16]} 4. d4 {[%emt 0:01:43]} cxd4 {[%emt 0:01:39]} 5. exd4 {[%emt 0:00:05]} d5 {[%emt 0:02:59]} 6. Nxd5 {[%emt 0:08:18]} e6 {[%emt 0:00:55]} 7. Nc3 {[%emt 0:01:01]} Bxd4 {[%emt 0:02:31]} 8. Ne4 {[%emt 0:18:51]} Nf6 {[%emt 0:13:34]} 9. Nf3 {[%emt 0:02:16]} Nc6 {[%emt 0:04:57]} 10. Nxd4 {[%emt 0:08:43]} Nxe4 {[%emt 0:00:41]} 11. Be3 {[%emt 0:03:29]} Qa5+ {[%emt 0:00:58]} 12. Ke2 {[%emt 0:00:04]} O-O {[%emt 0:10:06]} 13. Nxc6 {[%emt 0:02:21]} bxc6 {[%emt 0:02:48]} 14. f3 {[%emt 0:01:41]} Rb8 {[%emt 0:17:03]} 15. fxe4 {[%emt 0:05:05]} Rxb2+ {[%emt 0:00:16]} 16. Kf3 {[%emt 0:00:09]} f5 {[%emt 0:00:40]} 17. Qd6 {[%emt 0:15:46]} e5 {[%emt 0:21:08]} 18. Qc5 {[%emt 0:07:39]} Qd8 {[%emt 0:03:40]} 19. Qxe5 {[%emt 0:02:24]} fxe4+ {[%emt 0:00:05]} 20. Kg3 {[%emt 0:00:30]} Rf5 {[%emt 0:00:30]} 21. Qxe4 {[%emt 0:03:02]} Qd6+ {[%emt 0:02:09]} 22. Bf4 {[%emt 0:00:42]} Rg5+ {[%emt 0:00:20]} 23. Kf3 {[%emt 0:00:24]} Bg4+ {[%emt 0:00:10]} 24. Kg3 {[%emt 0:00:15]} Bf5+ {[%emt 0:00:05]} 0-1

[Event "XIX Najdorf Memorial 2019"]
[Site "Warsaw"]
[Date "2019.07.10"]
[Round "5.9"]
[White "Zylka, Stanislaw"]
[Black "Harazinska, Magdalena"]
[Result "1-0"]
[ECO "A37"]
[WhiteElo "2308"]
[BlackElo "2004"]
[Annotator "NA"]
[PlyCount "59"]
[EventDate "2019.07.06"]
[EventType "swiss"]
[EventCountry "POL"]
[SourceTitle "playchess.com"]
[Source "ChessBase"]
[SourceQuality "1"]
[TimeControl "40/5400+30:1800+30"]

1. c4 {[%emt 0:00:00]} c5 {[%emt 0:00:08]} 2. Nf3 {[%emt 0:00:00]} Nc6 {[%emt 0:03:07]} 3. Nc3 {[%emt 0:00:00]} g6 {[%emt 0:05:06]} 4. g3 {[%emt 0:00:13]} Bg7 {[%emt 0:00:29]} 5. Bg2 {[%emt 0:00:18]} e6 {[%emt 0:01:15]} 6. d4 {[%emt 0:00:26]} Nxd4 {[%emt 0:16:48]} 7. Nxd4 {[%emt 0:00:11]} cxd4 {[%emt 0:00:28]} 8. Ne4 {[%emt 0:00:08]} Qc7 {[%emt 0:10:31]} 9. c5 {[%emt 0:07:03]} Ne7 {[%emt 0:08:27]} 10. Nd6+ {[%emt 0:05:12]} Kf8 {[%emt 0:00:43]} 11. b4 {[%emt 0:00:29]} Nf5 {[%emt 0:05:11]} 12. Nxf5 {[%emt 0:17:10]} gxf5 {[%emt 0:00:20]} 13. Bb2 {[%emt 0:00:22]} a5 {[%emt 0:09:31]} 14. O-O {[%emt 0:01:36]} d5 {[%emt 0:05:59]} 15. cxd6 {[%emt 0:03:08]} Qxd6 {[%emt 0:00:06]} 16. b5 {[%emt 0:00:25]} a4 {[%emt 0:04:58]} 17. Qd2 {[%emt 0:15:43]} Ke7 {[%emt 0:05:28]} 18. Rad1 {[%emt 0:04:05]} Rd8 {[%emt 0:01:39]} 19. e3 {[%emt 0:01:08]} a3 {[%emt 0:06:58]} 20. Bxd4 {[%emt 0:00:59]} Bxd4 {[%emt 0:00:33]} 21. exd4 {[%emt 0:00:09]} Ra4 {[%emt 0:02:21]} 22. Qg5+ {[%emt 0:07:54]} Kf8 {[%emt 0:00:49]} 23. d5 {[%emt 0:00:22]} e5 {[%emt 0:01:00]} 24. Rfe1 {[%emt 0:00:18]} f6 {[%emt 0:03:21]} 25. Qh5 {[%emt 0:00:49]} Kg7 {[%emt 0:03:05]} 26. Bh3 {[%emt 0:00:22]} Qc5 {[%emt 0:02:13]} 27. Rxe5 {[%emt 0:01:31]} Rb4 {[%emt 0:01:22]} 28. Re3 {[%emt 0:08:50]} Rb2 {[%emt 0:01:01]} 29. Rde1 {[%emt 0:00:20]} Rd7 {[%emt 0:01:01]} 30. Bxf5 {[%emt 0:00:13]} 1-0

[Event "XIX Najdorf Memorial 2019"]
[Site "Warsaw"]
[Date "2019.07.10"]
[Round "5.10"]
[White "Sieciechowicz, Marcin"]
[Black "Janik, Igor"]
[Result "1-0"]
[ECO "E46"]
[WhiteElo "2399"]
[BlackElo "2495"]
[Annotator "ChessBase"]
[PlyCount "61"]
[EventDate "2019.07.06"]
[EventType "swiss"]
[EventCountry "POL"]
[SourceTitle "playchess.com"]
[Source "ChessBase"]
[SourceQuality "1"]
[TimeControl "40/5400+30:1800+30"]

1. d4 {[%emt 0:00:00]} Nf6 {[%emt 0:00:00]} 2. c4 {[%emt 0:00:00]} e6 {[%emt 0:00:00]} 3. Nc3 {[%emt 0:00:00]} Bb4 {[%emt 0:00:00]} 4. e3 {[%emt 0:00:00]} O-O {[%emt 0:00:00]} 5. Bd2 {[%emt 0:00:00]} b6 {[%emt 0:02:56]} 6. Nf3 {[%emt 0:00:24]} d5 {[%emt 0:01:00]} 7. cxd5 {[%emt 0:00:20]} exd5 {[%emt 0:00:08]} 8. Bd3 {[%emt 0:00:05]} Ba6 {[%emt 0:00:16]} 9. Bxa6 {[%emt 0:00:22]} Nxa6 {[%emt 0:00:07]} 10. O-O {[%emt 0:00:24]} Re8 {[%emt 0:00:16]} 11. h3 {[%emt 0:03:02]} Bf8 {[%emt 0:02:02]} 12. Rc1 {[%emt 0:05:41]} c5 {[%emt 0:00:09]} 13. dxc5 {[%emt 0:02:22]} bxc5 {[%emt 0:01:51]} 14. Ne2 {[%emt 0:04:51]} Qb6 {[%emt 0:11:54]} 15. Bc3 {[%emt 0:02:13]} Rad8 {[%emt 0:03:04]} 16. Qa4 {[%emt 0:02:42]} Re4 {[%emt 0:06:04]} 17. Qc2 {[%emt 0:03:48]} Nb4 {[%emt 0:03:31]} 18. Bxb4 {[%emt 0:08:52]} Rxb4 {[%emt 0:00:13]} 19. b3 {[%emt 0:00:26]} a5 {[%emt 0:04:14]} 20. Nc3 {[%emt 0:04:51]} d4 {[%emt 0:02:17]} 21. Na4 {[%emt 0:02:46]} Qb5 {[%emt 0:02:34]} 22. exd4 {[%emt 0:04:50]} cxd4 {[%emt 0:00:07]} 23. Rfd1 {[%emt 0:05:22]} d3 {[%emt 0:07:44]} 24. Qc7 {[%emt 0:02:22]} Rd7 {[%emt 0:01:46]} 25. Qc8 {[%emt 0:01:01]} Qd5 {[%emt 0:05:31]} 26. Rc5 {[%emt 0:06:05]} Qd6 {[%emt 0:00:07]} 27. Rxa5 {[%emt 0:08:46]} Rb8 {[%emt 0:02:56]} 28. Qc4 {[%emt 0:06:44]} Re8 {[%emt 0:12:44]} 29. Ra6 {[%emt 0:02:12]} Qb8 {[%emt 0:00:50]} 30. Rxf6 {[%emt 0:04:36]} Rc7 {[%emt 0:01:27]} 31. Rc6 {[%emt 0:00:27]} 1-0

[Event "XIX Najdorf Memorial 2019"]
[Site "Warsaw"]
[Date "2019.07.10"]
[Round "5.10"]
[White "AlHuwar, Jasem"]
[Black "Miroshnichenko, Pavel"]
[Result "1-0"]
[ECO "A06"]
[WhiteElo "2255"]
[BlackElo "2300"]
[Annotator "NA RC"]
[PlyCount "119"]
[EventDate "2019.07.06"]
[EventType "swiss"]
[EventCountry "POL"]
[SourceTitle "playchess.com"]
[Source "ChessBase"]
[SourceQuality "1"]
[TimeControl "40/5400+30:1800+30"]

1. Nf3 {[%emt 0:00:30]} d5 {[%emt 0:00:00]} 2. g3 {[%emt 0:00:05]} g6 {[%emt 0:00:00]} 3. Bg2 {[%emt 0:00:21]} Bg7 {[%emt 0:00:00]} 4. O-O {[%emt 0:00:12]} e5 {[%emt 0:00:01]} 5. c4 {[%emt 0:00:29]} c6 {[%emt 0:00:19]} 6. d3 {[%emt 0:02:04]} Ne7 {[%emt 0:00:36]} 7. e4 {[%emt 0:00:22]} O-O {[%emt 0:05:08]} 8. b3 {[%emt 0:02:04]} d4 {[%emt 0:02:33]} 9. Ba3 {[%emt 0:12:33]} a5 {[%emt 0:06:44]} 10. c5 {[%emt 0:01:00]} h6 {[%emt 0:06:29]} 11. Nbd2 {[%emt 0:05:30]} Be6 {[%emt 0:01:35]} 12. Qc2 {[%emt 0:01:27]} Nd7 {[%emt 0:03:17]} 13. Nc4 {[%emt 0:00:18]} Qc7 {[%emt 0:05:40]} 14. Nfd2 {[%emt 0:02:29]} f5 {[%emt 0:07:01]} 15. Bh3 {[%emt 0:05:50]} Rad8 {[%emt 0:07:25]} 16. b4 {[%emt 0:01:22]} axb4 {[%emt 0:01:21]} 17. Bxb4 {[%emt 0:00:09]} Ra8 {[%emt 0:00:39]} 18. a4 {[%emt 0:03:10]} Kh7 {[%emt 0:02:23]} 19. Nd6 {[%emt 0:03:47]} Nc8 {[%emt 0:07:09]} 20. N2c4 {[%emt 0:01:07]} Nxd6 {[%emt 0:00:31]} 21. Nxd6 {[%emt 0:00:06]} Rf6 {[%emt 0:10:13]} 22. exf5 {[%emt 0:03:58]} Bxf5 {[%emt 0:09:01]} 23. Bg2 {[%emt 0:00:20]} Be6 {[%emt 0:02:07]} 24. a5 {[%emt 0:01:17]} Bd5 {[%emt 0:01:22]} 25. Ne4 {[%emt 0:01:50]} Rff8 {[%emt 0:01:38]} 26. Rab1 {[%emt 0:04:49]} Bxe4 {[%emt 0:05:40]} 27. dxe4 {[%emt 0:07:49]} Nf6 {[%emt 0:02:01]} 28. Rb3 {[%emt 0:01:06]} Rf7 {[%emt 0:01:00]} 29. Rfb1 {[%emt 0:00:46]} Rd8 {[%emt 0:01:38]} 30. Be1 {[%emt 0:00:42]} Qc8 {[%emt 0:00:10]} 31. Qc4 {[%emt 0:01:02]} Re7 {[%emt 0:00:15]} 32. Qf1 {[%emt 0:01:02]} Qa8 {[%emt 0:01:25]} 33. Qc4 {[%emt 0:03:32]} Red7 {[%emt 0:02:32]} 34. Rd3 {[%emt 0:00:09]} Ne8 {[%emt 0:01:18]} 35. Bh3 {[%emt 0:01:24]} Re7 {[%emt 0:00:08]} 36. Rdb3 {[%emt 0:00:33]} Nf6 {[%emt 0:01:53]} 37. f3 {[%emt 0:00:31]} h5 {[%emt 0:00:59]} 38. Bf1 {[%emt 0:14:25]} Bh6 {[%emt 0:03:08]} 39. Bd3 {[%emt 0:05:10]} Rg7 {[%emt 0:03:23]} 40. Rb6 {[%emt 0:00:00]} Rf8 {[%emt 0:00:00]} 41. Kg2 {[%emt 0:09:03]} Qc8 {[%emt 0:04:07]} 42. a6 {[%emt 0:07:37]} bxa6 {[%emt 0:03:46]} 43. Qxa6 {[%emt 0:02:28]} Rc7 {[%emt 0:13:58]} 44. Qxc8 {[%emt 0:09:09]} Rfxc8 {[%emt 0:00:15]} 45. Rb7 {[%emt 0:01:12]} Bf8 {[%emt 0:01:50]} 46. Ba5 {[%emt 0:01:14]} Rg7 {[%emt 0:01:17]} 47. Rxg7+ {[%emt 0:01:03]} Bxg7 {[%emt 0:00:45]} 48. Rb7 {[%emt 0:01:00]} g5 {[%emt 0:01:03]} 49. Bc7 {[%emt 0:01:01]} Re8 {[%emt 0:01:29]} 50. Bd6 {[%emt 0:00:45]} Kg6 {[%emt 0:01:47]} 51. Bc4 {[%emt 0:01:32]} Rd8 {[%emt 0:01:02]} 52. Be6 {[%emt 0:02:17]} Ne8 {[%emt 0:02:23]} 53. Bf5+ {[%emt 0:03:38]} Kh6 {[%emt 0:00:06]} 54. Bxe5 {[%emt 0:00:32]} d3 {[%emt 0:00:19]} 55. h4 {[%emt 0:02:52]} d2 {[%emt 0:02:07]} 56. hxg5+ {[%emt 0:00:08]} Kxg5 {[%emt 0:00:02]} 57. Bf4+ {[%emt 0:00:06]} Kf6 {[%emt 0:00:06]} 58. g4 {[%emt 0:00:06]} hxg4 {[%emt 0:02:03]} 59. fxg4 {[%emt 0:00:07]} Nc7 {[%emt 0:01:29]} 60. Rxc7 {[%emt 0:00:21]} 1-0

[Event "XIX Najdorf Memorial 2019"]
[Site "Warsaw"]
[Date "2019.07.10"]
[Round "5.11"]
[White "Goluch, Piotr"]
[Black "Popovic, Dusan"]
[Result "1/2-1/2"]
[ECO "A40"]
[WhiteElo "2386"]
[BlackElo "2487"]
[Annotator "ChessBase"]
[PlyCount "35"]
[EventDate "2019.07.06"]
[EventType "swiss"]
[EventCountry "POL"]
[SourceTitle "playchess.com"]
[Source "ChessBase"]
[SourceQuality "1"]
[TimeControl "40/5400+30:1800+30"]

1. d4 {[%emt 0:00:00]} g6 {[%emt 0:00:00]} 2. c4 {[%emt 0:00:00]} Bg7 {[%emt 0:00:00]} 3. Nf3 {[%emt 0:00:17]} d6 {[%emt 0:00:00]} 4. g3 {[%emt 0:00:07]} Nd7 {[%emt 0:00:15]} 5. Bg2 {[%emt 0:00:36]} e5 {[%emt 0:00:11]} 6. Nc3 {[%emt 0:00:40]} Ne7 {[%emt 0:00:16]} 7. h4 {[%emt 0:01:14]} h6 {[%emt 0:01:04]} 8. h5 {[%emt 0:11:21]} g5 {[%emt 0:01:03]} 9. d5 {[%emt 0:00:07]} f5 {[%emt 0:06:44]} 10. e4 {[%emt 0:00:18]} Nc5 {[%emt 0:09:28]} 11. Nh2 {[%emt 0:08:00]} O-O {[%emt 0:09:43]} 12. Be3 {[%emt 0:00:19]} Nxe4 {[%emt 0:06:10]} 13. Nxe4 {[%emt 0:00:11]} fxe4 {[%emt 0:00:06]} 14. g4 {[%emt 0:05:00]} c6 {[%emt 0:03:44]} 15. O-O {[%emt 0:03:16]} cxd5 {[%emt 0:01:11]} 16. cxd5 {[%emt 0:06:53]} Kh8 {[%emt 0:02:16]} 17. Bxe4 {[%emt 0:05:14]} Ng8 {[%emt 0:00:23]} 18. Qd2 {[%emt 0:14:12]} 1/2-1/2

[Event "XIX Najdorf Memorial 2019"]
[Site "Warsaw"]
[Date "2019.07.10"]
[Round "5.12"]
[White "Mosesov, Danylo"]
[Black "Gagare, Shardul"]
[Result "1/2-1/2"]
[ECO "D52"]
[WhiteElo "2353"]
[BlackElo "2476"]
[Annotator "ChessBase"]
[PlyCount "41"]
[EventDate "2019.07.06"]
[EventType "swiss"]
[EventCountry "POL"]
[SourceTitle "playchess.com"]
[Source "ChessBase"]
[SourceQuality "1"]
[TimeControl "40/5400+30:1800+30"]

1. d4 {[%emt 0:00:00]} Nf6 {[%emt 0:00:12]} 2. c4 {[%emt 0:00:00]} c6 {[%emt 0:03:47]} 3. Nc3 {[%emt 0:00:43]} d5 {[%emt 0:00:08]} 4. Nf3 {[%emt 0:00:03]} e6 {[%emt 0:00:14]} 5. Bg5 {[%emt 0:00:34]} Nbd7 {[%emt 0:00:11]} 6. e3 {[%emt 0:00:18]} Qa5 {[%emt 0:00:13]} 7. Nd2 {[%emt 0:00:33]} Bb4 {[%emt 0:00:16]} 8. Qc2 {[%emt 0:00:30]} O-O {[%emt 0:00:12]} 9. Be2 {[%emt 0:00:10]} dxc4 {[%emt 0:02:07]} 10. Bxf6 {[%emt 0:00:16]} Nxf6 {[%emt 0:00:06]} 11. Nxc4 {[%emt 0:00:10]} Qc7 {[%emt 0:00:10]} 12. O-O {[%emt 0:01:13]} b6 {[%emt 0:00:42]} 13. a3 {[%emt 0:01:41]} Be7 {[%emt 0:00:12]} 14. b4 {[%emt 0:03:08]} Bb7 {[%emt 0:00:30]} 15. Ne5 {[%emt 0:08:27]} Rfc8 {[%emt 0:16:42]} 16. Rfc1 {[%emt 0:08:49]} Bd6 {[%emt 0:14:28]} 17. f4 {[%emt 0:03:43]} Qe7 {[%emt 0:00:28]} 18. Bf3 {[%emt 0:14:53]} Nd5 {[%emt 0:13:02]} 19. Qd2 {[%emt 0:05:56]} f6 {[%emt 0:07:26]} 20. Nc4 {[%emt 0:01:27]} Bc7 {[%emt 0:02:19]} 21. Rab1 {[%emt 0:10:14]} 1/2-1/2